Cogmind - Beta 16 @@@ ROGUE MODE // 2025.10.27 @ 15:21:17 Player: Visionary Result: Destroyed by 06-HNZ(h) with Bore Cannon Performance ------------- Evolutions (0) 0 Regions Visited (3) 600 Robots Destroyed (25) 125 Value Destroyed (464) 464 Prototype IDs (4) 80 Alien Tech Used (0) 0 Bonus (-18) -18 TOTAL SCORE: 1251 Bonus ------- Friendly Fire -18 Cogmind --------- Core Integrity 0/250 Matter 288/300 Energy 250/250 System Corruption 6% Temperature Cool (0) Movement Walking (120) Location -10/Subcaves Parts ------- > --- POWER (1) -------- Ion Engine > --- PROPULSION (2) --- Improved Aluminum Leg Improved Aluminum Leg > --- UTILITY (2) ------ Medium Storage Unit Propulsion Shielding > --- WEAPON (2) ------- Light Assault Rifle Subdweller Machine Gun > --- INVENTORY (10) --- Ion Engine Improved Aluminum Leg Small Battery (100) Medium Matter Pod (100) Scrap Shield Subdweller Beam Cannon Assault Rifle Hammer Peak State ------------ > --- POWER ------------ Ion Engine > --- PROPULSION ------- Improved Aluminum Leg Improved Aluminum Leg > --- UTILITY ---------- Medium Storage Unit Propulsion Shielding > --- WEAPON ----------- Light Assault Rifle Subdweller Machine Gun > --- INVENTORY -------- Ion Engine Improved Aluminum Leg Small Battery Medium Matter Pod Scrap Shield Subdweller Beam Cannon Assault Rifle Hammer [Rating: 11] Favorites ----------- Power Light Ion Engine Engine Light Ion Engine Propulsion Improved Aluminum Leg Leg Improved Aluminum Leg Utility Propulsion Shielding Storage Medium Storage Unit Protection Propulsion Shielding Weapon Light Assault Rifle Energy Gun Medium Laser Ballistic Gun Light Assault Rifle Ballistic Cannon Light Cannon Build | -11 -10 -10 -10 ------- Run | Yrd Mat Min Sub Slots Evolved . | . . . . Power . | . . . . Propulsion . | . . . . Utility . | . . . . Weapon . | . . . . Parts Attached 17 | 5 9 . 3 Power 3 | 1 2 . . Engine 3 | 1 2 . . Core . | . . . . Reactor . | . . . . Propulsion 5 | 2 2 . 1 Treads . | . . . . Leg 5 | 2 2 . 1 Wheel . | . . . . Hover . | . . . . Flight . | . . . . Utility 3 | . 2 . 1 Device . | . . . . Storage 1 | . 1 . . Processor . | . . . . Hackware . | . . . . Protection 2 | . 1 . 1 Artifact . | . . . . Weapon 6 | 2 3 . 1 Energy Gun 2 | 2 . . . Energy Cannon . | . . . . Ballistic Gun 3 | . 2 . 1 Ballistic Cannon 1 | . 1 . . Launcher . | . . . . Special Weapon . | . . . . Impact Weapon . | . . . . Slashing Weapon . | . . . . Piercing Weapon . | . . . . Special Melee Weapon . | . . . . Unidentified Prototypes . | . . . . Parts Lost 3 | . 2 . 1 Power 1 | . 1 . . Propulsion 1 | . . . 1 Utility . | . . . . Weapon 1 | . 1 . . Highest Loss Streak 2 | . 2 . 1 To Critical Strikes . | . . . . Average Backups 6 | 2 5 9 8 Power . | . . 1 1 Propulsion 1 | 1 2 2 1 Utility 1 | . 1 3 3 Weapon 1 | 1 1 3 2 Tool/Special . | . . . . Unused Backups 12 | . 4 . 8 Power 1 | . . . 1 Propulsion 4 | . 3 . 1 Utility 4 | . 1 . 3 Weapon 3 | . . . 3 Tool/Special . | . . . . Average Slot Usage (%) 91 | . 88 100 98 Engine 13 | . 13 14 14 Leg 27 | . 27 28 27 Storage 8 | . 6 14 14 Protection 12 | . 12 14 12 Energy Gun 1 | . 2 . . Ballistic Gun 16 | . 14 14 22 Ballistic Cannon 9 | . 10 14 5 Peak Build Rating 11 | 5 10 10 11 Average Rating 7 | 4 7 10 10 On Entrance 6 | . 5 10 10 Avg Prop Armor Cover (%) . | . . . . Naked Turns . | . . . . Heaviest Build 21 | 7 20 20 21 Greatest Support 26 | 20 26 26 26 Greatest Overweight (x) 1 | 1 . . . Average Overweight (x) . | . . . . Largest Inventory Capacity 10 | 5 10 10 10 Average Capacity 7 | 5 7 10 10 Most Carried 10 | 4 10 10 10 Average Carried 6 | 2 5 9 9 Final Capacity 10 | 5 10 10 10 Final Carried 10 | 3 9 10 9 Class Distribution -------------------- 100% | Mutant Dominant Class ---------------- Mutant | -10/Materials Mutant | -10/Mines Mutant | -10/Subcaves Resources | -11 -10 -10 -10 ----------- Run | Yrd Mat Min Sub Matter Collected 791 | 250 348 63 130 Remotely . | . . . . Salvage Created 653 | . 523 27 103 Parts 53 | . 38 4 11 Haulers Intercepted 1 | . 1 . . Recyclers Shooed 2 | . 2 . . Parts Field Recycled . | . . . . Retrieved Matter . | . . . . Parts Self-Destructed . | . . . . Prevented . | . . . . Parts Restored . | . . . . Kills | -11 -10 -10 -10 ------- Run | Yrd Mat Min Sub Combat Hostiles Destroyed 20 | . 15 3 2 Guns 11 | . 9 2 . Cannons 8 | . 5 1 2 AOE 1 | . 1 . . Classes Destroyed 7 | . 6 . 1 Worker 2 | . 2 . . Hauler 1 | . 1 . . Recycler 1 | . 1 . . Watcher 1 | . 1 . . Swarmer 11 | . 8 3 . Grunt 7 | . 7 . . Subdweller 2 | . . . 2 Best Kill Streak 6 | . 6 4 2 Combat Bots Only 5 | . 5 3 2 Max Kills in Single Turn 2 | . 2 1 1 Gunslinging . | . . . . Exploded 1 | . 1 . . Melee . | . . . . Uniques/NPCs Destroyed . | . . . . Combat | -11 -10 -10 -10 -------- Run | Yrd Mat Min Sub Hostile Shots Fired 99 | . 72 15 12 Missed 21 | . 17 3 1 Hits 78 | . 55 12 11 Projectile 78 | . 55 12 11 Damage Taken 915 | . 535 91 289 Core 274 | . 164 . 110 Absorbed by Shields . | . . . . Redirected to Shielding 59 | . 15 9 35 Regen/Repaired (Parts) 74 | . 74 . . Core Remaining (%) 100 | 100 . . . Volleys Fired 74 | . 54 9 11 Largest 2 | . 2 2 2 Hottest 90 | . 90 50 50 Shots Fired 140 | . 99 18 23 Gun 92 | . 67 9 16 Cannon 48 | . 32 9 7 Launcher . | . . . . Special . | . . . . Kinetic 116 | . 75 18 23 Thermal 18 | . 18 . . Explosive . | . . . . Electromagnetic 6 | . 6 . . Robot Hit Streak 14 | . 6 8 14 Robot Miss Streak 5 | . 5 4 1 Penetration Max . | . . . . Secondary Targets 2 | . 2 . . Max Gunslinging Chain 1 | . 1 . . Shots Hit Robots 81 | . 49 11 21 Core Hits 39 | . 27 3 9 Critical Kills 1 | . . . 1 Critical Parts Destroyed . | . . . . Critical Strikes 1 | . . . 1 Destroy 1 | . . . 1 Melee Attacks . | . . . . Impact . | . . . . Slashing . | . . . . Piercing . | . . . . Sneak Attacks . | . . . . Combat Hostiles . | . . . . Follow-up Attacks . | . . . . Damage Inflicted 1124 | . 696 132 296 Guns 526 | . 316 43 167 Cannons 545 | . 327 89 129 Explosions 53 | . 53 . . Melee . | . . . . Ramming . | . . . . Kinetic 924 | . 496 132 296 Thermal 167 | . 167 . . Explosive . | . . . . Electromagnetic 33 | . 33 . . Impact . | . . . . Slashing . | . . . . Piercing . | . . . . Highest Corruption 6 | . 6 6 6 Average Corruption 5 | . 5 6 6 Corruption Purged . | . . . . Corruption Blocked . | . . . . Effects 30 | . 16 6 8 Message Errors 6 | . 4 . 2 Matter Fused 6 | . 2 4 . Heat Flow Errors 2 | . . . 2 Energy Discharges 3 | . 1 2 . Parts Rejected 1 | . 1 . . Data Loss (minor) 5 | . 4 . 1 Data Loss (major) 1 | . . . 1 Misfires 3 | . 2 . 1 Alerts 3 | . 2 . 1 Overload Shots . | . . . . Overflow Damage 9 | . . 9 . Projectiles 9 | . . 9 . Explosions . | . . . . Melee . | . . . . Knockbacks 7 | . 6 1 . Impact . | . . . . Kinetic 7 | . 6 1 . Secondary . | . . . . Self-Inflicted Damage 35 | . 35 . . Shots 1 | . 1 . . Rammed . | . . . . Targets Rammed . | . . . . Kicked . | . . . . Crushed . | . . . . Highest Temperature 272 | . 217 20 272 Average Temperature 60 | . 59 8 128 Received Heat Transfer 96 | . 84 . 12 Effects 1 | . 1 . . Interference 1 | . 1 . . Siege Activations . | . . . . Martial Activations . | . . . . Shielding Activations . | . . . . Robots Disrupted . | . . . . Combat Hostiles . | . . . . Robots Corrupted . | . . . . Combat Hostiles . | . . . . Parts Fried . | . . . . Impact Corruptions . | . . . . Robots Melted . | . . . . Combat Hostiles . | . . . . Parts Melted 1 | . 1 . . Heat Transferred 483 | . 483 . . Parts Sabotaged . | . . . . Parts Stolen . | . . . . Parts Stripped . | . . . . Power Chain Reactions 1 | . 1 . . Alert | -11 -10 -10 -10 ------- Run | Yrd Mat Min Sub Maximum Alert Level . | . . . . Low Security (%) 100 | 100 100 100 . Level 1 . | . . . . Level 2 . | . . . . Level 3 . | . . . . Level 4 . | . . . . Level 5 . | . . . . High Security . | . . . . Max Security . | . . . . Peak Influence 143 | . 143 73 . Initial 13 | . . 13 . Average 50 | . 65 38 . Influence Increases 507 | . 437 70 . Destroy 0b10 Robot/C 360 | . 300 60 . Destroy 0b10 Robot/NC 25 | . 25 . . Destroy Leader 64 | . 54 10 . Successful Hack 10 | . 10 . . Disable Machine 15 | . 15 . . Destroy Structure 3 | . 3 . . Lose Combat Pursuer 30 | . 30 . . Influence Decreases 507 | . 402 105 . Entered New Map 22 | . . 22 . Time Decay 465 | . 382 83 . Lost Part 20 | . 20 . . Squads Dispatched 3 | . 3 . . Investigation 1 | . 1 . . Extermination . | . . . . Reinforcement 2 | . 2 . . Assault . | . . . . Garrison . | . . . . Intercept . | . . . . Searches Triggered . | . . . . Construction Impeded . | . . . . Haulers Reinforced . | . . . . Active Scanning Responses . | . . . . Cargo Convoy Interrupts . | . . . . Stealth | -11 -10 -10 -10 --------- Run | Yrd Mat Min Sub Distress Signals 1 | . 1 . . Communications Jammed . | . . . . Distress Signals . | . . . . Times Spotted 37 | . 24 2 11 Peak Tracking Total 7 | . 7 2 4 Tactical Retreats 1 | . 1 . . Traps | -11 -10 -10 -10 ------- Run | Yrd Mat Min Sub Traps Triggered 6 | . 6 . . Indirectly . | . . . . Trap Hack Attempts . | . . . . Triggered . | . . . . Disarmed . | . . . . Reprogrammed . | . . . . Reused . | . . . . Traps Extracted . | . . . . Installed . | . . . . Triggered . | . . . . Machines | -11 -10 -10 -10 ---------- Run | Yrd Mat Min Sub Machines Disabled 1 | . 1 . . Max in Single Turn 1 | . 1 . . Machines Repaired . | . . . . Machines Dismantled . | . . . . Machines Sabotaged . | . . . . Overloaded Fab Kills . | . . . . Hacking | -11 -10 -10 -10 --------- Run | Yrd Mat Min Sub Machines Accessed 5 | . 5 . . Terminals 4 | . 4 . . Fabricators . | . . . . Repair Stations 1 | . 1 . . Recycling Units . | . . . . Scanalyzers . | . . . . Garrison Access . | . . . . Total Hacks 11 | . 11 . . Successful 8 | . 8 . . Failed 3 | . 3 . . Catastrophic . | . . . . Database Lockouts . | . . . . Manual . | . . . . Terminals 9 | . 9 . . Fabricators . | . . . . Repair Stations 2 | . 2 . . Recycling Units . | . . . . Scanalyzers . | . . . . Garrison Access . | . . . . Terminal Hacks 6 | . 6 . . Record 2 | . 2 . . Prototype ID Bank 2 | . 2 . . Emergency Access Points 1 | . 1 . . Alert Level 1 | . 1 . . Fabricator Hacks . | . . . . Repair Station Hacks 2 | . 2 . . Scan Component 1 | . 1 . . Repair 1 | . 1 . . Recycling Unit Hacks . | . . . . Scanalyzer . | . . . . Garrison Access Hacks . | . . . . Unauthorized Hacks . | . . . . Terminals . | . . . . Fabricators . | . . . . Repair Stations . | . . . . Recycling Units . | . . . . Scanalyzers . | . . . . Garrison Access . | . . . . Data Cores Recovered . | . . . . Used . | . . . . Hacking Detections 4 | . 4 . . Full Trace Events . | . . . . Feedback Events . | . . . . Feedback Blocked . | . . . . Robot Schematics Acquired . | . . . . Robots Built . | . . . . Authchips . | . . . . Time . | . . . . Total Robot Build Rating . | . . . . Part Schematics Acquired . | . . . . Parts Built . | . . . . Authchips . | . . . . Time . | . . . . Total Part Build Rating . | . . . . Part Studies Acquired . | . . . . Parts Repaired 1 | . 1 . . Time 26 | . 26 . . Parts Recycled . | . . . . Recycled Matter . | . . . . Retrieved Matter . | . . . . Retrieved Components . | . . . . Parts Scanalyzed . | . . . . Part Schematics Acquired . | . . . . Parts Damaged . | . . . . Bothacking | -11 -10 -10 -10 ------------ Run | Yrd Mat Min Sub Used RIF Installer . | . . . . Robots Hacked . | . . . . Non-combat . | . . . . Combat . | . . . . Robot Hacks Applied . | . . . . Relay Couplers Released . | . . . . Fabnet Peak Effective % . | . . . . Robots Rewired . | . . . . Allies Hacked . | . . . . Hacks Repelled . | . . . . Allies | -11 -10 -10 -10 -------- Run | Yrd Mat Min Sub Total Allies . | . . . . Largest Group . | . . . . Highest-Rated Group . | . . . . Highest-Rated Ally . | . . . . Total Orders . | . . . . Ally Attacks . | . . . . Total Damage . | . . . . Kills . | . . . . Allies Corrupted . | . . . . Allies Melted . | . . . . Intel | -11 -10 -10 -10 ------- Run | Yrd Mat Min Sub Active Infowar (turns) . | . . . . Robot Analysis Total . | . . . . Derelict Logs Recovered 2 | . . 1 1 Drone Launches . | . . . . Drone Recoveries . | . . . . Exploration | -11 -10 -10 -10 ------------- Run | Yrd Mat Min Sub Turns Passed 1613 | 215 925 187 286 Spaces Moved 980 | 73 585 135 187 Core 16 | 16 . . . Treads . | . . . . Legs 964 | 57 585 135 187 Wheels . | . . . . Hover . | . . . . Flight . | . . . . Fastest Speed 50 | 50 120 120 120 Average Speed 119 | 109 120 120 120 Slowest Speed 120 | 120 120 120 120 Overloaded Moves . | . . . . Propulsion Burnouts . | . . . . Robots Hopped . | . . . . Potential Cave-ins . | . . . . Cave-ins Triggered . | . . . . Exploration Rate (%) 32 | 5 79 32 15 Regions Visited 3 Branch Regions 2 Pre-discovered Areas . | . . . . Known Exits Taken . | . . . . Unknown Exits Taken 3 | 1 1 1 . Scrap Searched 1 | . . 1 . Spaces Dug . | . . . . Terrain Destroyed 2 | . 2 . . Melee . | . . . . Projectile . | . . . . AOE 2 | . 2 . . Terrain Rammed . | . . . . Walls Destroyed . | . . . . Machines Disabled . | . . . . Actions | -11 -10 -10 -10 --------- Run | Yrd Mat Min Sub Total 1305 | 208 722 144 231 Wait 186 | 123 40 . 23 Move 977 | 72 584 134 187 Hop . | . . . . Pick Up 34 | 8 22 1 3 Fast Attach . | . . . . Attach 14 | 5 6 . 3 Detach 1 | . 1 . . Swap 5 | . 5 . . Drop 14 | . 10 . 4 Fire 74 | . 54 9 11 Melee . | . . . . Ram . | . . . . Kick . | . . . . Crush . | . . . . Escape Stasis . | . . . . Rewire . | . . . . Trap . | . . . . Miscellaneous . | . . . . Route ------- -11/Scrapyard -10/Materials (discovered 3 exits: [*Mat] / [*Min x2]) -10/Mines -10/Subcaves History --------- Turn | Location | Event 22 | -11/Scrapyard | Discovered new exit (range 15) 216 | -11/Scrapyard | Entered Materials 216 | -10/Materials | Discovered new exit (range 14) 318 | -10/Materials | Build established: Mutant 370 | -10/Materials | Repaired Aluminum Leg 563 | -10/Materials | Discovered new exit (range 10) 741 | -10/Materials | Discovered new exit (range 11) 748 | -10/Materials | Core integrity fell below 50% 1141 | -10/Materials | Entered Mines 1207 | -10/Mines | Found a hidden stash of uninstalled traps 1256 | -10/Mines | Learned location of 1 exit from Materials 1316 | -10/Mines | Discovered new exit (range 10) 1328 | -10/Mines | Entered Subcaves 1403 | -10/Subcaves | Ambushed by swarm of Subdwellers 1403 | -10/Subcaves | Ambushed by Subdwellers from Twisted Machinery 1411 | -10/Subcaves | Core integrity fell below 20% 1538 | -10/Subcaves | Learned Materials emergency access door positions 1614 | -10/Subcaves | Destroyed by 06-HNZ(h) with Bore Cannon Last Messages --------------- 5O-V7N(R) destroyed. Acquired Sub. Machine Gun. Acquired 81 matter. Acquired 23 matter. Acquired 9 matter. System corrupted: FCS attempts to trigger Lgt. Cannon. System corrupted: Lgt. Cannon misfires. Dropped Lgt. Cannon. Acquired Sub. Beam Cannon. Acquired 14 matter. FG 0IIUG,5P/MLOHRLVDQFP8U>WWI DSO/H System corrupted: Component data lost. Acquired derelict log, extracted data. Data stored: Materials emergency access points. System corrupted: IFF burst signal emitted. C0-GL8(R) suffers critical hit (Destroy). C0-GL8(R) destroyed. Acquired 3 matter. System corrupted: Heat flow error (+175). Penetrated by HV Slug. Map ----- +----------------------------------------------------+ | ?????????????????????????????????????????????????? | | ?????????????????????????????????????????????????? | | ?????????????????????????????????????????????????? | | ?????????????????????????????????????????????????? | | ?????????????????????????????????????????????????? | | ?????????????????????????????????????????????????? | | ?????????????????????????????????????????????????? | | ?????????????????????????????????????????????????? | | ?????????????????????????????????????????????????? | | ????????????????????????????? ??????????????????? | | ????????????????????????????# ?????????????????? | | ???????????????????????????? ?????????????????? | | ???????????????????????????? #?###?????????????? | | ???????????????????????????? ## ##????????????? | | ????????????????????????????# #????????????? | | ???????????????????????????## #????????????? | | ??????????????????????????? #????????????? | | ???????????????????????????? #????????????? | | ????????????????????????????# #?????????????? | | ????????????????????????????#s #??????????????? | | ?????????????????????????#### #??????????????? | | ????????????????????????## s ###????????????? | | ????????????????????????# !s! #????????????? | | ?????????????????????###